fUST/lending_fUST_20240313
["ID","MTS","AMOUNT","RATE_DAILY","PERIOD"]
[318659146,1710333038244,-500.0,0.00018577,2]
[318659149,1710333038253,-215.25815506,0.00018577,2]
[318659153,1710333038263,-1344.71,0.00018577,2]
[318659155,1710333038273,-1344.71,0.00018577,2]
[318659157,1710333038282,-500.0,0.00018577,2]
[318659159,1710333038291,-500.0,0.00018577,2]
[318659161,1710333038300,-500.0,0.00018577,2]
[318659163,1710333038309,-500.0,0.00018577,2]
[318659165,1710333038318,-500.0,0.00018577,2]
[318659167,1710333038329,-500.0,0.00018577,2]
[318659169,1710333038338,-500.0,0.00018577,2]
[318659171,1710333038348,-500.0,0.00018577,2]
[318659173,1710333038357,-500.0,0.00018577,2]
[318659175,1710333038366,-518.32,0.00018577,2]
[318659177,1710333038375,-500.0,0.00018577,2]
[318659179,1710333038385,-500.0,0.00018577,2]
[318659181,1710333038395,-497.44924398,0.00018577,2]
[318659183,1710333038404,-485.43052844,0.00018577,2]
[318659185,1710333038413,-500.0,0.00018577,2]
[318659186,1710333038422,-500.0,0.00018577,2]
[318659188,1710333038431,-502.91982913,0.00018577,2]
[318659190,1710333038441,-500.0,0.00018577,2]
[318659192,1710333038451,-500.95116096,0.00018577,2]
[318659194,1710333038460,-500.0,0.00018577,2]
[318659196,1710333038470,-500.0,0.00018577,2]
[318659198,1710333038480,-500.0,0.00018577,2]
[318659200,1710333038489,-500.0,0.00018577,2]
[318659202,1710333038498,-8422.26993979,0.0001868,2]
[318659326,1710333039858,-596.50052206,0.00018521,2]
[318659328,1710333039868,-1558.55016858,0.0001868,2]
[318659330,1710333039877,-188.11098368,0.00018712,2]
[318659332,1710333039886,-171.24641985,0.0001873,2]
[318659334,1710333039895,-188.11098368,0.00018788,2]
[318659336,1710333039905,-4504.3420943,0.000188,2]
[318659338,1710333039914,-632.85536201,0.00018811,2]
[318659340,1710333039922,-589.27,0.00018811,2]
[318659342,1710333039932,-1344.71,0.00018811,2]
[318659344,1710333039941,-500.0,0.00018811,2]
[318659346,1710333039950,-500.0,0.00018811,2]
[318659348,1710333039959,-500.0,0.00018811,2]
[318659350,1710333039968,-500.0,0.00018811,2]
[318659352,1710333039977,-500.0,0.00018811,2]
[318659353,1710333039987,-500.0,0.00018811,2]
[318659355,1710333039997,-500.0,0.00018811,2]
[318659357,1710333040006,-587.59303743,0.00018811,2]
[318659359,1710333040015,-500.0,0.00018811,2]
[318659361,1710333040024,-500.0,0.00018811,2]
[318659363,1710333040033,-502.39194081,0.00018812,2]
[318659374,1710333040043,-500.0,0.00018812,2]
[318659376,1710333040127,-500.74044955,0.00018812,2]
[318659378,1710333040137,-500.0,0.00018812,2]
[318659380,1710333040145,-267.42557659,0.00018812,2]
[318659382,1710333040154,-500.0,0.00018812,2]
[318659384,1710333040163,-500.0,0.00018812,2]
[318659386,1710333040172,-500.0,0.00018812,2]
[318659388,1710333040182,-500.53648021,0.00018812,2]
[318659389,1710333040191,-309.04273382,0.00018812,2]
[318659391,1710333040201,-501.8303975,0.00018812,2]
[318659393,1710333040210,-500.0,0.00018812,2]
[318659396,1710333040220,-500.0,0.00018812,2]
[318659398,1710333040230,-500.0,0.00018812,2]
[318659400,1710333040239,-501.14165524,0.00018812,2]
[318659401,1710333040248,-500.0,0.00018812,2]
[318659403,1710333040259,-501.29015592,0.00018812,2]
[318659405,1710333040268,-500.0,0.00018812,2]
[318659407,1710333040277,-500.0,0.00018812,2]
[318659409,1710333040287,-500.0,0.00018812,2]
[318659411,1710333040296,-500.0,0.00018812,2]
[318659413,1710333040306,-151.0,0.00018812,2]
[318659415,1710333040315,-151.0,0.00018812,2]
[318659417,1710333040325,-500.0,0.00018812,2]
[318659419,1710333040337,-500.0,0.00018812,2]
[318659421,1710333040347,-500.0,0.00018812,2]
[318659423,1710333040356,-500.0,0.00018812,2]
[318659425,1710333040365,-503.94382436,0.00018812,2]
[318659427,1710333040375,-500.0,0.00018812,2]
[318659430,1710333040385,-500.0,0.00018812,2]
[318659432,1710333040399,-500.0,0.00018812,2]
[318659434,1710333040409,-476.38497804,0.00018812,2]
[318659436,1710333040418,-436.36872179,0.00018812,2]
[318659438,1710333040427,-500.58822353,0.00018812,2]
[318659440,1710333040436,-500.0,0.00018812,2]
[318659442,1710333040446,-509.52165562,0.00018812,2]
[318659444,1710333040455,-500.0,0.00018812,2]
[318659446,1710333040464,-500.0,0.00018812,2]
[318659448,1710333040473,-644.13010333,0.00018812,2]
[318659449,1710333040482,-520.57104809,0.00018812,2]
[318659451,1710333040493,-444.23949975,0.00018812,2]
[318659743,1710333046241,-20517.9257424,0.00018523,2]
[318659744,1710333046251,-55.76050025,0.00018812,2]
[318659745,1710333046260,-255.04790613,0.00018812,2]
[318659746,1710333046269,-500.0,0.00018812,2]
[318659747,1710333046278,-437.89320017,0.00018812,2]
[318659748,1710333046287,-500.0,0.00018812,2]
[318659749,1710333046297,-500.0,0.00018812,2]
[318659750,1710333046306,-500.81007343,0.00018812,2]
[318659751,1710333046315,-500.0,0.00018812,2]
[318659752,1710333046324,-500.0,0.00018812,2]
[318659753,1710333046337,-500.0,0.00018812,2]
[318659754,1710333046347,-500.0,0.00018812,2]
[318659755,1710333046356,-366.08107603,0.00018812,2]
[318659756,1710333046365,-500.0,0.00018812,2]
[318659757,1710333046375,-640.33959255,0.00018812,2]
[318659758,1710333046385,-540.97716582,0.00018812,2]
[318659759,1710333046395,-500.0,0.00018812,2]
[318659760,1710333046404,-500.0,0.00018812,2]
[318659761,1710333046414,-314.23881577,0.00018812,2]
[318659762,1710333046423,-500.0,0.00018812,2]
[318659763,1710333046433,-500.0,0.00018812,2]
[318659764,1710333046443,-500.0,0.00018812,2]
[318659765,1710333046452,-273.55548165,0.00018812,2]
[318659766,1710333046464,-227.68833911,0.00018812,2]
[318659767,1710333046473,-500.0,0.00018812,2]
[318659768,1710333046483,-358.31166089,0.00018812,2]
[318659769,1710333050137,5000.0,0.00018393,2]
[318659770,1710333051440,19029.78082051,0.00017941,2]
[318659771,1710333052076,2076.87202901,0.00017941,2]
[318659772,1710333057640,9702.11774295,0.00017941,2]
[318659773,1710333066149,1437.82537702,0.00018393,2]
[318659774,1710333069434,19029.78082051,0.00017941,2]
[318659775,1710333091384,3662.18023805,0.00017941,2]
[318659776,1710333142106,580.5488914,0.00017759,2]
[318659777,1710333195279,462.84620182,0.00018437,2]
[318659778,1710333210470,21135.3424539,0.00017684,2]
[318659779,1710333290149,258.792565,0.00017788,2]
[318659780,1710333325904,155.11323266,0.00017684,2]
[318659781,1710333329518,155.14739002,0.00017684,2]
[318659782,1710333389976,2360.91698605,0.00017684,2]
[318659784,1710333426915,2000.83161275,0.000185,2]
[318659785,1710333572928,248.706772,0.0001762,2]
[318659786,1710333688475,338.66733599,0.000185,2]
[318659787,1710333690953,3146.40444488,0.000185,2]
[318659788,1710333694015,325.2609667,0.000185,2]
[318659789,1710333694056,269.30134824,0.000185,2]
[318659790,1710333702009,616.32126211,0.000185,2]
[318659791,1710333703683,24900.0,0.00017702,2]
[318659792,1710333721443,4417.77957011,0.000185,2]
[318659793,1710333743982,-160.91325393,0.00027,120]
[318659794,1710333744002,-428.73177358,0.00027,120]
[318659795,1710333792378,3716.42270948,0.00027,120]
[318659810,1710334159863,245.91300671,0.000185,2]
[318659811,1710334166679,248.706772,0.00017637,2]
[318659814,1710334177322,269.30134824,0.000185,2]
[318659815,1710334187544,690.73115949,0.000185,2]
[318659816,1710334198768,2945.18638007,0.00017461,2]
[318659817,1710334205988,325.2609667,0.000185,2]
[318659818,1710334212749,2454.3219834,0.00017461,2]
[318659819,1710334230786,1278.70175335,0.00017461,2]
[318659864,1710334232574,-245.91300671,0.00018528,2]
[318659866,1710334232584,-746.21795384,0.00018529,2]
[318659868,1710334232594,-112.84216509,0.0001853,2]
[318659873,1710334232639,-196.79430275,0.0001853,2]
[318659875,1710334232649,-286.7363391,0.0001853,2]
[318659878,1710334232658,-500.0,0.0001853,2]
[318659881,1710334232668,-154.25037251,0.0001853,2]
[318659884,1710334232677,-500.0,0.0001853,2]
[318659887,1710334232687,-305.84151071,0.0001853,2]
[318659890,1710334232696,-706.66,0.0001853,2]
[318659893,1710334232705,-706.66,0.0001853,2]
[318659896,1710334232715,-500.0,0.0001853,2]
[318659898,1710334232723,-429.43969699,0.0001853,2]
[318659899,1710334232733,-321.33110277,0.0001853,2]
[318659901,1710334232742,-500.0,0.0001853,2]
[318659902,1710334232751,-500.0,0.0001853,2]
[318659903,1710334232760,-500.0,0.0001853,2]
[318659904,1710334232769,-544.73797812,0.0001853,2]
[318659905,1710334232779,-502.42362457,0.0001853,2]
[318659906,1710334232788,-501.56622553,0.0001853,2]
[318659907,1710334232797,-504.06534262,0.0001853,2]
[318659908,1710334232806,-500.33438884,0.0001853,2]
[318659909,1710334232815,-441.78411549,0.0001853,2]
[318660533,1710334238232,-60.78246987,0.0001853,2]
[318660536,1710334238242,-500.0,0.0001853,2]
[318660539,1710334238251,-502.14189741,0.0001853,2]
[318660542,1710334238260,-501.54467216,0.0001853,2]
[318660545,1710334238269,-237.98712656,0.0001853,2]
[318660565,1710334238368,-119.06940614,0.0001853,2]
[318660567,1710334238378,-500.49529453,0.0001853,2]
[318660569,1710334238387,-500.0,0.0001853,2]
[318660571,1710334238397,-500.0,0.0001853,2]
[318660573,1710334238405,-500.0,0.0001853,2]
[318660575,1710334238415,-404.93161785,0.0001853,2]
[318660577,1710334238425,-334.10307958,0.0001853,2]
[318660579,1710334238434,-500.21564443,0.0001853,2]
[318660581,1710334238443,-500.0,0.0001853,2]
[318660583,1710334238452,-59.91570728,0.0001853,2]
[318661003,1710334242814,-442.66123111,0.0001853,2]
[318661006,1710334242824,-420.64236875,0.0001853,2]
[318661008,1710334242834,-513.1875211,0.0001853,2]
[318661010,1710334242844,-500.0,0.0001853,2]
[318661012,1710334242853,-500.0,0.0001853,2]
[318661014,1710334242863,-500.0,0.0001853,2]
[318661016,1710334242872,-500.0,0.0001853,2]
[318661018,1710334242881,-226.57814679,0.0001853,2]
[318661020,1710334242891,-501.84157759,0.0001853,2]
[318661022,1710334242900,-500.0,0.0001854,2]
[318661024,1710334242909,-500.0,0.0001854,2]
[318661026,1710334242918,-500.0,0.0001854,2]
[318661028,1710334242928,-500.0,0.0001854,2]
[318661030,1710334242937,-500.0,0.0001854,2]
[318661032,1710334242945,-500.0,0.0001854,2]
[318661034,1710334242955,-483.41629092,0.0001854,2]
[318661036,1710334242964,-500.0,0.0001854,2]
[318661038,1710334242974,-500.0,0.0001854,2]
[318661040,1710334242983,-503.123231,0.0001854,2]
[318661042,1710334242993,-500.0,0.0001854,2]
[318661044,1710334243002,-500.0,0.0001854,2]
[318661046,1710334243011,-500.0,0.0001854,2]
[318661048,1710334243020,-500.0,0.0001854,2]
[318661050,1710334243029,-188.11098368,0.000188,2]
[318661052,1710334243039,-738.43864902,0.0001881,2]
[318661054,1710334243051,-737.73484686,0.0001881,2]
[318661056,1710334243060,-500.0,0.0001881,2]
[318661058,1710334243069,-290.31045082,0.0001881,2]
[318661060,1710334243078,-518.73242309,0.0001881,2]
[318661062,1710334243091,-657.89757691,0.0001881,2]
[318661064,1710334243101,-646.13181533,0.0001881,2]
[318661084,1710334243294,-530.49818467,0.0001881,2]
[318661087,1710334243304,-500.0,0.0001881,2]
[318661089,1710334243314,-500.0,0.0001881,2]
[318661091,1710334243323,-500.0,0.0001881,2]
[318661093,1710334243334,-500.0,0.0001881,2]
[318661095,1710334243343,-500.0,0.0001881,2]
[318661096,1710334243352,-500.0,0.0001881,2]
[318661098,1710334243361,-500.0,0.0001881,2]
[318661101,1710334243371,-535.95481708,0.0001881,2]
[318661103,1710334243380,-500.0,0.0001881,2]
[318661104,1710334243390,-500.0,0.0001881,2]
[318661106,1710334243399,-151.0,0.0001881,2]
[318661108,1710334243409,-9379.18134891,0.00018811,2]
[318661111,1710334243420,-2978.59051825,0.00018811,2]
[318661113,1710334243431,-302.13291311,0.00018811,2]
[318661115,1710334243444,-10578.32749706,0.00018811,2]
[318661117,1710334243453,-500.0,0.00018811,2]
[318661119,1710334243462,-500.0,0.00018811,2]
[318661121,1710334243471,-500.0,0.00018811,2]
[318661123,1710334243481,-500.0,0.00018811,2]
[318661125,1710334243490,-500.0,0.00018811,2]
[318661127,1710334243499,-500.0,0.00018811,2]
[318661129,1710334243510,-706.66,0.00018811,2]
[318661131,1710334243519,-706.66,0.00018811,2]
[318661133,1710334243528,-500.0,0.00018811,2]
[318661135,1710334243538,-500.0,0.00018811,2]
[318661137,1710334243547,-500.0,0.00018811,2]
[318661139,1710334243555,-177.14993336,0.00018811,2]
[318661141,1710334243564,-193.74919523,0.00018811,2]
[318661143,1710334243574,-373.59,0.00018811,2]
[318661145,1710334243583,-500.0,0.00018811,2]
[318661147,1710334243593,-500.0,0.00018811,2]
[318661149,1710334243602,-500.34883361,0.00018811,2]
[318661151,1710334243611,-500.76304905,0.00018811,2]
[318661153,1710334243621,-500.0,0.00018811,2]
[318661155,1710334243630,-530.47643432,0.00018811,2]
[318661157,1710334243639,-500.0,0.00018811,2]
[318661159,1710334243648,-500.0,0.00018811,2]
[318661161,1710334243657,-500.0,0.00018811,2]
[318661163,1710334243666,-562.8703879,0.00018811,2]
[318661165,1710334243675,-500.0,0.00018811,2]
[318661167,1710334243686,-283.67737819,0.00018811,2]
[318661169,1710334243695,-500.0,0.00018811,2]
[318661170,1710334243704,-500.0,0.00018811,2]
[318661171,1710334243713,-500.0,0.00018811,2]
[318661172,1710334243722,-500.0,0.00018811,2]
[318661173,1710334243731,-500.0,0.00018811,2]
[318661174,1710334243741,-501.25553307,0.00018811,2]
[318661176,1710334243751,-500.0,0.00018811,2]
[318661177,1710334243761,-500.0,0.00018811,2]
[318661179,1710334243771,-500.0,0.00018811,2]
[318661181,1710334243781,-500.0,0.00018811,2]
[318661183,1710334243791,-500.0,0.00018811,2]
[318661185,1710334243801,-342.40961178,0.00018811,2]
[318661187,1710334243810,-44.64724231,0.00018811,2]
[318661388,1710334246350,-500.0,0.0001881,2]
[318661390,1710334246359,-500.0,0.0001881,2]
[318661391,1710334246369,-455.35275769,0.00018811,2]
[318661393,1710334246378,-501.87466175,0.00018811,2]
[318661395,1710334246388,-500.0,0.00018811,2]
[318661397,1710334246397,-501.2439937,0.00018811,2]
[318661399,1710334246406,-500.0,0.00018811,2]
[318661401,1710334246416,-500.0,0.00018811,2]
[318661403,1710334246425,-262.13132324,0.00018811,2]
[318661404,1710334246435,-500.0,0.00018811,2]
[318661406,1710334246444,-500.0,0.00018811,2]
[318661408,1710334246453,-500.0,0.00018811,2]
[318661410,1710334246463,-221.67541716,0.00018811,2]
[318661412,1710334246472,-500.0,0.00018811,2]
[318661414,1710334246481,-501.58096993,0.00018811,2]
[318661416,1710334246491,-504.93835786,0.00018811,2]
[318661417,1710334246500,-586.74,0.00018811,2]
[318661419,1710334246511,-586.74,0.00018811,2]
[318661421,1710334246521,-586.74,0.00018811,2]
[318661423,1710334246530,-515.61,0.00018811,2]
[318661425,1710334246540,-515.61,0.00018811,2]
[318661427,1710334246549,-515.61,0.00018811,2]
[318661428,1710334246559,-500.0,0.00018811,2]
[318661430,1710334246569,-502.87912735,0.00018811,2]
[318661432,1710334246578,-500.0,0.00018811,2]
[318661434,1710334246587,-502.37987467,0.00018811,2]
[318661436,1710334246596,-500.0,0.00018811,2]
[318661437,1710334246606,-500.0,0.00018811,2]
[318661439,1710334246615,-500.0,0.00018811,2]
[318661441,1710334246624,-1176.63,0.00018811,2]
[318661443,1710334246633,-556.1,0.00018811,2]
[318661445,1710334246642,-421.30370122,0.00018811,2]
[318661447,1710334246653,-354.14,0.00018811,2]
[318661449,1710334246662,-500.0,0.00018811,2]
[318661450,1710334246671,-1768.2,0.00018811,2]
[318661452,1710334246680,-1768.2,0.00018811,2]
[318661454,1710334246690,-243.19661929,0.00018811,2]
[318661456,1710334246699,-500.0,0.00018811,2]
[318661457,1710334246709,-502.37239159,0.00018811,2]
[318661459,1710334246718,-500.0,0.00018811,2]
[318661461,1710334246727,-500.0,0.00018811,2]
[318661463,1710334246737,-500.0,0.00018811,2]
[318661465,1710334246746,-351.79356993,0.00018811,2]
[318661466,1710334246755,-500.0,0.00018812,2]
[318661468,1710334246764,-500.0,0.00018812,2]
[318661470,1710334246773,-500.0,0.00018812,2]
[318661472,1710334246782,-582.89981544,0.00018812,2]
[318661474,1710334246792,-155.31158836,0.00018812,2]
[318661476,1710334246801,-500.0,0.00018812,2]
[318661478,1710334246811,-500.0,0.00018812,2]
[318661480,1710334246824,-500.0,0.00018812,2]
[318661482,1710334246833,-500.0,0.00018812,2]
[318661483,1710334246842,-500.0,0.00018812,2]
[318661485,1710334246852,-500.0,0.00018812,2]
[318661487,1710334246862,-706.66,0.00018812,2]
[318661489,1710334246873,-706.66,0.00018812,2]
[318661491,1710334246881,-500.0,0.00018812,2]
[318661492,1710334246891,-186.22661206,0.00018812,2]
[318661494,1710334246900,-500.0,0.00018812,2]
[318661496,1710334246910,-500.0,0.00018812,2]
[318661497,1710334246919,-500.0,0.00018894,2]
[318661499,1710334246928,-929.21675674,0.00018896,2]
[318661500,1710334246937,-510.72986613,0.00018899,2]
[318661502,1710334246946,-500.0,0.00018899,2]
[318661504,1710334246954,-500.0,0.00018899,2]
[318661505,1710334246965,-500.0,0.00018899,2]
[318661507,1710334246974,-500.0,0.00018899,2]
[318661509,1710334246983,-500.0,0.00018899,2]
[318661510,1710334246993,-500.0,0.00018899,2]
[318661511,1710334247002,-500.0,0.00018899,2]
[318661512,1710334247011,-1768.2,0.00018899,2]
[318661513,1710334247020,-6329.11947054,0.000189,2]
[318661514,1710334247029,-175.5,0.000189,2]
[318661515,1710334247039,-1516.74721569,0.000189,2]
[318661516,1710334247048,-706.66,0.00018909,2]
[318661517,1710334247057,-180.50508705,0.00018909,2]
[318661518,1710334247066,-500.0,0.0001891,2]
[318661519,1710334247075,-500.0,0.0001891,2]
[318661520,1710334247084,-406.87243515,0.0001891,2]
[318661521,1710334247098,-500.0,0.0001891,2]
[318661522,1710334247107,-706.66,0.0001891,2]
[318661523,1710334247116,-570.8775851,0.0001891,2]
[318661524,1710334247126,-500.0,0.0001891,2]
[318661525,1710334247137,-500.0,0.0001891,2]
[318661526,1710334247146,-500.0,0.0001891,2]
[318661527,1710334247155,-500.0,0.0001891,2]
[318661528,1710334247165,-500.0,0.0001891,2]
[318661529,1710334247175,-586.74,0.0001891,2]
[318661530,1710334247185,-515.61,0.0001891,2]
[318661531,1710334247194,-500.0,0.0001891,2]
[318661532,1710334247203,-500.0,0.0001891,2]
[318661533,1710334247213,-500.0,0.0001891,2]
[318661534,1710334247222,-1768.2,0.0001891,2]
[318661535,1710334247232,-514.33464807,0.0001891,2]
[318661536,1710334247241,-1610.3205044,0.00018911,2]
[318661545,1710334247330,-409.37047238,0.00018911,2]
[318661547,1710334247340,-155.15515516,0.00018911,2]
[318661549,1710334247350,-221.49074364,0.00018911,2]
[318661551,1710334247359,-173.72377652,0.00018911,2]
[318661552,1710334247369,-326.65088458,0.00018911,2]
[318661554,1710334247377,-165.69695583,0.00018911,2]
[318661556,1710334247387,-252.46519099,0.00018911,2]
[318661557,1710334247396,-586.90104418,0.00018911,2]
[318661559,1710334247405,-500.0,0.00018911,2]
[318661561,1710334247414,-500.0,0.00018911,2]
[318661563,1710334247423,-155.39631053,0.00018912,2]
[318661564,1710334247432,-155.34569665,0.00018912,2]
[318661566,1710334247442,-158.48477092,0.00018912,2]
[318661568,1710334247451,-1176.63,0.00018919,2]
[318661570,1710334247460,-500.0,0.00018919,2]
[318661571,1710334247469,-291.0,0.0001892,7]
[318661573,1710334247479,-301.09802703,0.0001893,2]
[318661575,1710334247488,-500.0,0.0001893,2]
[318661577,1710334247497,-626.24,0.0001893,2]
[318661579,1710334247507,-706.66,0.0001893,2]
[318661580,1710334247517,-500.0,0.0001893,2]
[318661582,1710334247526,-7887.59268145,0.00018931,2]
[318661583,1710334247535,-633.5779868,0.00018931,2]
[318661584,1710334247545,-155.38724073,0.0001894,2]
[318661585,1710334247555,-3508.34338426,0.0001894,2]
[318661587,1710334247565,-404.59380981,0.0001894,2]
[318661589,1710334247574,-155.46105219,0.00018941,2]
[318661591,1710334247583,-1474.69226491,0.00018941,2]
[318661593,1710334247592,-558.48918801,0.00018941,2]
[318661594,1710334247601,-204.80125661,0.00018941,2]
[318661596,1710334247610,-319.32881347,0.00018944,2]
[318661598,1710334247620,-253.85678197,0.00018954,2]
[318661600,1710334247629,-500.0,0.00018959,2]
[318661601,1710334247638,-586.74,0.00018959,2]
[318661603,1710334247648,-234.40699026,0.00018959,2]
[318661604,1710334247657,-394.47099485,0.00018959,2]
[318661606,1710334247666,-500.0,0.0001896,2]
[318661608,1710334247675,-706.66,0.0001896,2]
[318661610,1710334247685,-500.0,0.0001896,2]
[318661611,1710334247695,-500.0,0.0001896,2]
[318661613,1710334247704,-500.0,0.0001896,2]
[318661615,1710334247714,-500.0,0.0001896,2]
[318661617,1710334247723,-500.0,0.0001896,2]
[318661618,1710334247732,-1768.2,0.0001896,2]
[318661620,1710334247741,-155.2163805,0.0001896,2]
[318661621,1710334247750,-261.01390562,0.0001896,2]
[318661622,1710334247759,-515.61,0.00018961,2]
[318661623,1710334247768,-1176.63,0.00018961,2]
[318661624,1710334247779,-500.0,0.00018961,2]
[318661625,1710334247789,-500.0,0.00018961,2]
[318661626,1710334247799,-500.0,0.00018962,2]
[318661628,1710334247808,-500.0,0.00018962,2]
[318661629,1710334247817,-500.0,0.00018962,2]
[318661630,1710334247827,-199.43904163,0.00018962,2]
[318661631,1710334247836,-500.0,0.00018962,2]
[318661632,1710334247846,-500.0,0.00018962,2]
[318661633,1710334247855,-586.74,0.00018962,2]
[318661634,1710334247867,-515.61,0.00018962,2]
[318661635,1710334247877,-500.0,0.00018962,2]
[318661636,1710334247887,-302.91486037,0.00018962,2]
[318661637,1710334247898,-1176.63,0.00018962,2]
[318661638,1710334247907,-500.0,0.00018962,2]
[318661639,1710334247917,-500.0,0.00018962,2]
[318661640,1710334247927,-1768.2,0.00018962,2]
[318661641,1710334247936,-1768.2,0.00018962,2]
[318661642,1710334247947,-500.0,0.00018962,2]
[318661643,1710334247956,-422.88613906,0.00018962,2]
[318661644,1710334247966,-196.43542829,0.00018962,2]
[318661645,1710334247976,-215.92501567,0.00018962,2]
[318661646,1710334247985,-156.42201451,0.00018962,2]
[318661647,1710334247995,-2120.69469478,0.00018962,2]
[318661648,1710334248005,-595.89703844,0.00018962,2]
[318661649,1710334248014,-884.38898759,0.00018962,2]
[318661650,1710334248023,-539.1285525,0.00018962,2]
[318661651,1710334248032,-8580.65024529,0.00018962,2]
[318661652,1710334248042,-184.15992687,0.00018962,2]
[318661653,1710334248052,-778.52901897,0.00018962,2]
[318661654,1710334248062,-281.21209698,0.00018962,2]
[318661655,1710334248073,-428.2787978,0.00018962,2]
[318661656,1710334248083,-171.26170651,0.00018962,2]
[318661657,1710334248093,-155.14428418,0.00018962,2]
[318661658,1710334248104,-635.42397111,0.00018962,2]
[318661659,1710334248115,-500.0,0.00018963,2]
[318661660,1710334248125,-500.0,0.00018963,2]
[318661661,1710334248134,-500.0,0.00018963,2]
[318661662,1710334248143,-500.0,0.00018963,2]
[318661663,1710334248153,-585.61093153,0.00018963,2]
[318661664,1710334248162,-706.66,0.00018963,2]
[318661665,1710334248172,-706.66,0.00018963,2]
[318661666,1710334248181,-706.66,0.00018963,2]
[318661667,1710334248190,-706.66,0.00018963,2]
[318661668,1710334248201,-706.66,0.00018963,2]
[318661669,1710334248211,-706.66,0.00018963,2]
[318661670,1710334248220,-706.66,0.00018963,2]
[318661671,1710334248230,-706.66,0.00018963,2]
[318661672,1710334248239,-706.66,0.00018963,2]
[318661673,1710334248248,-706.66,0.00018963,2]
[318661674,1710334248257,-706.66,0.00018963,2]
[318661675,1710334248266,-706.66,0.00018963,2]
[318661676,1710334248277,-706.66,0.00018963,2]
[318661677,1710334248286,-706.70534927,0.00018963,2]
[318661678,1710334248297,-500.0,0.00018968,2]
[318661679,1710334248306,-586.74,0.00018968,2]
[318661680,1710334248316,-500.0,0.00018968,2]
[318661681,1710334248325,-155.26498997,0.00018968,2]
[318661682,1710334248334,-422.79229294,0.00018969,2]
[318661683,1710334248344,-10037.5371688,0.00018969,2]
[318661684,1710334248354,-515.61,0.00018978,2]
[318661685,1710334248363,-1176.63,0.00018978,2]
[318661686,1710334248372,-500.0,0.00018978,2]
[318661687,1710334248382,-500.0,0.00018979,2]
[318661688,1710334248391,-500.0,0.00018979,2]
[318661689,1710334248400,-500.0,0.00018979,2]
[318661690,1710334248409,-500.0,0.00018979,2]
[318661691,1710334248418,-500.0,0.00018979,2]
[318661692,1710334248428,-187.63418828,0.00018979,2]
[318661693,1710334248437,-500.0,0.00018979,2]
[318661694,1710334248446,-150.14474337,0.00018979,2]
[318661695,1710334248456,-586.74,0.00018979,2]
[318661696,1710334248465,-586.74,0.00018979,2]
[318661697,1710334248475,-586.74,0.00018979,2]
[318661698,1710334248484,-586.74,0.00018979,2]
[318661699,1710334248494,-515.61,0.00018979,2]
[318661700,1710334248503,-515.61,0.00018979,2]
[318661701,1710334248512,-515.61,0.00018979,2]
[318661702,1710334248523,-515.61,0.00018979,2]
[318661703,1710334248533,-1176.63,0.00018979,2]
[318661704,1710334248542,-1176.63,0.00018979,2]
[318661705,1710334248551,-1176.63,0.00018979,2]
[318661706,1710334248560,-1176.63,0.00018979,2]
[318661707,1710334248569,-500.0,0.00018979,2]
[318661708,1710334248579,-500.0,0.00018979,2]
[318661709,1710334248588,-500.0,0.00018979,2]